fUSD/lending_fUSD_20250505
["ID","MTS","AMOUNT","RATE_DAILY","PERIOD"]
[359965083,1746452655173,-157.341897,0.00019935,2]
[359965084,1746452655194,-181.132582,0.00019935,2]
[359965085,1746452655215,-181.132582,0.00019935,2]
[359965086,1746452655235,-181.132582,0.00019935,2]
[359965087,1746452655255,-181.132582,0.00019935,2]
[359965088,1746452655276,-450.0,0.00019946,2]
[359965089,1746452655297,-450.0,0.00019946,2]
[359965090,1746452655318,-450.0,0.00019946,2]
[359965091,1746452655340,-450.0,0.00019946,2]
[359965092,1746452655364,-450.0,0.00019946,2]
[359965093,1746452655385,-450.0,0.00019946,2]
[359965094,1746452655406,-450.0,0.00019946,2]
[359965095,1746452655427,-450.0,0.00019946,2]
[359965096,1746452655448,-450.0,0.00019946,2]
[359965097,1746452655470,-520.805872,0.00019946,2]
[359965098,1746452655491,-450.0,0.00019946,2]
[359965099,1746452655513,-450.0,0.00019946,2]
[359965100,1746452655535,-450.0,0.00019946,2]
[359965101,1746452655557,-442.15,0.00019946,2]
[359965102,1746452655579,-450.0,0.00019946,2]
[359965103,1746452655601,-450.0,0.00019946,2]
[359965104,1746452655623,-450.0,0.00019946,2]
[359965105,1746452655645,-192.11,0.00019946,2]
[359965106,1746452655667,-487.52,0.00019946,2]
[359965107,1746452655691,-487.52,0.00019946,2]
[359965108,1746452655714,-450.0,0.00019946,2]
[359965109,1746452655735,-487.52,0.00019946,2]
[359965110,1746452655757,-450.0,0.00019946,2]
[359965111,1746452655778,-450.0,0.00019946,2]
[359965112,1746452655799,-450.0,0.00019946,2]
[359965113,1746452655820,-3420.54,0.00019946,2]
[359965114,1746452655841,-3420.54,0.00019946,2]
[359965115,1746452655864,-3420.54,0.00019946,2]
[359965116,1746452655885,-257.66,0.00019946,2]
[359965117,1746452655907,-450.0,0.00019946,2]
[359965118,1746452655929,-450.0,0.00019946,2]
[359965119,1746452655950,-357.34,0.00019946,2]
[359965120,1746452655972,-492.45,0.00019946,2]
[359965121,1746452655992,-450.0,0.00019946,2]
[359965122,1746452656015,-450.0,0.00019946,2]
[359965123,1746452656036,-450.0,0.00019946,2]
[359965124,1746452656062,-450.0,0.00019946,2]
[359965125,1746452656084,-326.37,0.00019946,2]
[359965126,1746452656108,-450.0,0.00019946,2]
[359965127,1746452656136,-450.0,0.00019946,2]
[359965128,1746452656158,-351.741361,0.00019946,2]
[359965129,1746452656180,-357.8,0.00019946,2]
[359965130,1746452656201,-1055.0,0.00019947,2]
[359965131,1746452656224,-597.15,0.00019947,2]
[359965132,1746452656247,-450.0,0.00019947,2]
[359965133,1746452656268,-450.0,0.00019947,2]
[359965134,1746452656289,-450.0,0.00019947,2]
[359965135,1746452656310,-418.06417946,0.00019947,2]
[359965136,1746452656330,-165.7642074,0.00019947,2]
[359965137,1746452656351,-588.85,0.00019947,2]
[359965138,1746452656374,-153.02804203,0.00019947,2]
[359965139,1746452656396,-450.0,0.00019947,2]
[359965140,1746452656417,-450.0,0.00019947,2]
[359965141,1746452656439,-494.39,0.00019947,2]
[359965142,1746452656460,-450.0,0.00019947,2]
[359965143,1746452656481,-567.50170674,0.00019947,2]
[359965144,1746452656501,-244.35292645,0.00019947,2]
[359965145,1746452656523,-450.0,0.00019947,2]
[359965146,1746452656545,-450.0,0.00019947,2]
[359965147,1746452656567,-450.0,0.00019947,2]
[359965148,1746452656588,-450.0,0.00019947,2]
[359965149,1746452656609,-450.0,0.00019947,2]
[359965150,1746452656631,-450.0,0.00019947,2]
[359965151,1746452656653,-450.0,0.00019947,2]
[359965152,1746452656675,-450.0,0.00019947,2]
[359965153,1746452656694,-450.0,0.00019947,2]
[359965154,1746452656715,-435.77364674,0.00019947,2]
[359965155,1746452656735,-450.0,0.00019947,2]
[359965156,1746452656756,-450.0,0.00019947,2]
[359965157,1746452656777,-592.53259174,0.00019947,2]
[359965158,1746452656798,-450.0,0.00019947,2]
[359965159,1746452656820,-577.56,0.00019947,2]
[359965160,1746452656841,-506.97972963,0.00019947,2]
[359965161,1746452656862,-450.0,0.00019947,2]
[359965162,1746452656886,-450.0,0.00019947,2]
[359965163,1746452656908,-450.0,0.00019947,2]
[359965164,1746452656929,-450.0,0.00019947,2]
[359965165,1746452656951,-450.0,0.00019947,2]
[359965166,1746452656973,-450.0,0.00019947,2]
[359965167,1746452656994,-450.0,0.00019947,2]
[359965168,1746452657016,-450.0,0.00019947,2]
[359965169,1746452657039,-496.21231751,0.00019947,2]
[359965170,1746452657065,-450.0,0.00019947,2]
[359965171,1746452657087,-450.0,0.00019947,2]
[359965172,1746452657108,-450.0,0.00019947,2]
[359965173,1746452657131,-315.32131898,0.00019947,2]
[359965174,1746452657153,-450.0,0.00019947,2]
[359965175,1746452657174,-476.16,0.00019947,2]
[359965176,1746452657194,-450.0,0.00019947,2]
[359965177,1746452657214,-450.0,0.00019947,2]
[359965178,1746452657234,-450.0,0.00019947,2]
[359965179,1746452657255,-450.0,0.00019947,2]
[359965180,1746452657278,-450.0,0.00019947,2]
[359965181,1746452657299,-444.26561911,0.00019947,2]
[359965182,1746452657320,-450.0,0.00019947,2]
[359965183,1746452657341,-450.0,0.00019947,2]
[359965184,1746452657362,-450.0,0.00019947,2]
[359965185,1746452657384,-440.49,0.00019947,2]
[359965186,1746452657405,-450.0,0.00019947,2]
[359965187,1746452657426,-450.0,0.00019947,2]
[359965188,1746452657448,-450.0,0.00019947,2]
[359965189,1746452657469,-175.14219764,0.00019947,2]
[359965190,1746452657489,-500.0,0.00019947,2]
[359965191,1746452657510,-500.0,0.00019947,2]
[359965192,1746452657532,-450.0,0.00019947,2]
[359965193,1746452657553,-450.0,0.00019947,2]
[359965194,1746452657575,-151.0,0.00019947,2]
[359965195,1746452657595,-151.0,0.00019947,2]
[359965196,1746452657616,-450.0,0.00019947,2]
[359965197,1746452657637,-450.0,0.00019947,2]
[359965198,1746452657657,-450.0,0.00019947,2]
[359965199,1746452657677,-450.0,0.00019947,2]
[359965200,1746452657697,-450.0,0.00019947,2]
[359965201,1746452657717,-450.0,0.00019947,2]
[359965202,1746452657736,-450.0,0.00019947,2]
[359965203,1746452657755,-450.0,0.00019947,2]
[359965204,1746452657775,-450.0,0.00019947,2]
[359965205,1746452657794,-450.0,0.00019947,2]
[359965206,1746452657813,-450.0,0.00019947,2]
[359965207,1746452657833,-698.01,0.00019947,2]
[359965208,1746452657853,-698.01,0.00019947,2]
[359965209,1746452657876,-698.01,0.00019947,2]
[359965210,1746452657896,-925.39,0.00019947,2]
[359965211,1746452657917,-925.39,0.00019947,2]
[359965212,1746452657937,-151.0,0.00019947,2]
[359965213,1746452657957,-151.0,0.00019947,2]
[359965214,1746452657977,-151.0,0.00019947,2]
[359965215,1746452657997,-151.0,0.00019947,2]
[359965216,1746452658017,-450.0,0.00019947,2]
[359965217,1746452658044,-450.0,0.00019947,2]
[359965218,1746452658067,-408.30843333,0.00019947,2]
[359965219,1746452658088,-450.0,0.00019947,2]
[359965220,1746452658110,-450.0,0.00019947,2]
[359965221,1746452658133,-4480.89,0.00019947,2]
[359965222,1746452658155,-4480.89,0.00019947,2]
[359965223,1746452658175,-450.0,0.00019947,2]
[359965224,1746452658195,-450.0,0.00019947,2]
[359965225,1746452658217,-1995.64,0.00019947,2]
[359965226,1746452658239,-1995.64,0.00019947,2]
[359965227,1746452658259,-450.0,0.00019947,2]
[359965228,1746452658280,-450.0,0.00019947,2]
[359965229,1746452658301,-450.0,0.00019947,2]
[359965230,1746452658323,-450.0,0.00019947,2]
[359965231,1746452658498,-450.0,0.00019947,2]
[359965232,1746452658519,-450.0,0.00019947,2]
[359965233,1746452658540,-450.0,0.00019947,2]
[359965234,1746452658561,-450.0,0.00019947,2]
[359965235,1746452658582,-450.0,0.00019947,2]
[359965236,1746452658603,-238.82229932,0.00019947,2]
[359965237,1746452658626,-1000.0,0.00019947,2]
[359965238,1746452658646,-1000.0,0.00019947,2]
[359965239,1746452658667,-1000.0,0.00019947,2]
[359965240,1746452658688,-1000.0,0.00019947,2]
[359965241,1746452658709,-542.98251706,0.00019947,2]
[359965242,1746452658730,-450.0,0.00019947,2]
[359965243,1746452658751,-450.0,0.00019947,2]
[359965244,1746452658771,-450.0,0.00019947,2]
[359965245,1746452658793,-450.0,0.00019947,2]
[359965246,1746452658814,-450.0,0.00019947,2]
[359965247,1746452658837,-450.0,0.00019947,2]
[359965248,1746452658860,-450.0,0.00019947,2]
[359965249,1746452658882,-450.0,0.00019947,2]
[359965250,1746452658903,-207.97,0.00019947,2]
[359965251,1746452658924,-450.0,0.00019947,2]
[359965252,1746452658945,-450.0,0.00019947,2]
[359965253,1746452658968,-450.0,0.00019947,2]
[359965254,1746452658989,-450.0,0.00019947,2]
[359965255,1746452659010,-450.0,0.00019947,2]
[359965256,1746452659035,-450.0,0.00019947,2]
[359965257,1746452659061,-450.0,0.00019947,2]
[359965258,1746452659083,-522.62,0.00019947,2]
[359965259,1746452659106,-450.0,0.00019947,2]
[359965260,1746452659129,-450.0,0.00019947,2]
[359965261,1746452659151,-480.03504589,0.00019947,2]
[359965262,1746452659172,-450.0,0.00019947,2]
[359965263,1746452659193,-459.00018336,0.00019947,2]
[359965264,1746452659215,-450.0,0.00019947,2]
[359965265,1746452659236,-479.44358423,0.00019947,2]
[359965266,1746452659256,-450.0,0.00019947,2]
[359965267,1746452659276,-457.2414403,0.00019947,2]
[359965268,1746452659297,-450.0,0.00019947,2]
[359965269,1746452659318,-450.0,0.00019947,2]
[359965270,1746452659340,-457.86467116,0.00019947,2]
[359965271,1746452659361,-492.45,0.00019947,2]
[359965272,1746452659383,-450.0,0.00019947,2]
[359965273,1746452659403,-450.0,0.00019947,2]
[359965274,1746452659425,-450.0,0.00019947,2]
[359965275,1746452659447,-450.0,0.00019947,2]
[359965276,1746452659467,-462.30387753,0.00019947,2]
[359965277,1746452659487,-450.0,0.00019947,2]
[359965278,1746452659509,-461.61914464,0.00019947,2]
[359965279,1746452659530,-450.0,0.00019947,2]
[359965280,1746452659552,-151.0,0.00019947,2]
[359965281,1746452659573,-151.0,0.00019947,2]
[359965282,1746452659595,-450.0,0.00019947,2]
[359965283,1746452659619,-479.70341354,0.00019947,2]
[359965284,1746452659644,-450.0,0.00019947,2]
[359965285,1746452659668,-450.0,0.00019947,2]
[359965286,1746452659689,-528.78930967,0.00019947,2]
[359965287,1746452659710,-450.0,0.00019947,2]
[359965288,1746452659732,-519.78,0.00019947,2]
[359965289,1746452659754,-189.89382108,0.00019947,2]
[359965290,1746452659776,-1313.392562,0.00019947,2]
[359965291,1746452659798,-1313.392562,0.00019947,2]
[359965292,1746452659819,-1313.392562,0.00019947,2]
[359965293,1746452659840,-1313.392562,0.00019947,2]
[359965294,1746452659863,-450.0,0.00019947,2]
[359965295,1746452659888,-450.0,0.00019947,2]
[359965296,1746452659910,-450.0,0.00019947,2]
[359965297,1746452659932,-467.77034702,0.00019947,2]
[359965298,1746452659954,-1313.392562,0.00019947,2]
[359965299,1746452659975,-1313.392562,0.00019947,2]
[359965300,1746452659996,-1313.392562,0.00019947,2]
[359965301,1746452660019,-255.48,0.00019947,2]
[359965302,1746452660041,-1313.392554,0.00019947,2]
[359965303,1746452660067,-469.60120609,0.00019947,2]
[359965304,1746452660089,-450.0,0.00019947,2]
[359965305,1746452660109,-460.18741211,0.00019947,2]
[359965306,1746452660133,-450.0,0.00019947,2]
[359965307,1746452660154,-450.0,0.00019947,2]
[359965308,1746452660175,-450.0,0.00019947,2]
[359965309,1746452660196,-450.0,0.00019947,2]
[359965310,1746452660217,-506.81,0.00019947,2]
[359965311,1746452660239,-466.51685682,0.00019947,2]
[359965312,1746452660261,-450.0,0.00019947,2]
[359965313,1746452660281,-450.0,0.00019947,2]
[359965314,1746452660302,-337.77568946,0.00019947,2]
[359965315,1746452660323,-450.0,0.00019947,2]
[359965316,1746452660346,-450.0,0.00019947,2]
[359965317,1746452660367,-450.0,0.00019947,2]
[359965318,1746452660388,-450.0,0.00019947,2]
[359965319,1746452660409,-450.0,0.00019947,2]
[359965320,1746452660430,-510.66,0.00019947,2]
[359965321,1746452660451,-510.66,0.00019947,2]
[359965322,1746452660471,-510.66,0.00019947,2]
[359965323,1746452660492,-450.0,0.00019947,2]
[359965324,1746452660512,-478.97389603,0.00019947,2]
[359965325,1746452660533,-450.0,0.00019947,2]
[359965326,1746452660553,-450.0,0.00019947,2]
[359965327,1746452660574,-181.132582,0.00019947,2]
[359965328,1746452660593,-181.132582,0.00019947,2]
[359965329,1746452660613,-181.132582,0.00019947,2]
[359965330,1746452660634,-181.132582,0.00019947,2]
[359965331,1746452660655,-181.132582,0.00019947,2]
[359965332,1746452660676,-181.132582,0.00019947,2]
[359965333,1746452660696,-461.16882008,0.00019947,2]
[359965334,1746452660716,-181.132582,0.00019947,2]
[359965335,1746452660736,-181.132583,0.00019947,2]
[359965336,1746452660757,-151.0,0.00019948,2]
[359965337,1746452660778,-154.28249,0.00019948,2]
[359965338,1746452660798,-151.0,0.00019948,2]
[359965339,1746452660818,-151.0,0.00019948,2]
[359965340,1746452660839,-151.0,0.00019948,2]
[359965341,1746452660859,-151.0,0.00019948,2]
[359965342,1746452660881,-151.0,0.00019948,2]
[359965343,1746452660901,-151.0,0.00019948,2]
[359965344,1746452660922,-151.0,0.00019948,2]
[359965345,1746452660943,-309.11524028,0.00019948,2]
[359965346,1746452660964,-454.15690466,0.00019948,2]
[359965347,1746452660986,-450.0,0.00019948,2]
[359965348,1746452661007,-199.49888438,0.00019948,2]
[359965349,1746452661029,-525.33872342,0.00019948,2]
[359965350,1746452661055,-450.0,0.00019948,2]
[359965351,1746452661077,-450.0,0.00019948,2]
[359965352,1746452661099,-450.0,0.00019948,2]
[359965353,1746452661121,-450.0,0.00019948,2]
[359965354,1746452661145,-450.0,0.00019948,2]
[359965355,1746452661166,-450.0,0.00019948,2]
[359965356,1746452661187,-560.69982237,0.00019948,2]
[359965357,1746452661208,-111.33090437,0.00019948,2]
[359965358,1746452698270,-365.3361882,0.00019799,2]
[359965359,1746452698289,-2126.9781,0.00019822,2]
[359965360,1746452698310,-39531.6369,0.00019823,2]
[359965361,1746452698330,-892.708333,0.00019853,2]
[359965362,1746452698352,-198.18161,0.00019853,2]
[359965363,1746452698371,-618.77486739,0.00019881,2]
[359965364,1746452698394,-892.708333,0.00019887,2]
[359965365,1746452698414,-618.77486739,0.00019891,2]
[359965366,1746452698435,-450.0,0.00019896,2]
[359965367,1746452698455,-450.0,0.00019896,2]
[359965368,1746452698476,-450.0,0.00019896,2]
[359965369,1746452698496,-450.0,0.00019896,2]
[359965370,1746452698516,-450.0,0.00019896,2]
[359965371,1746452698538,-450.0,0.00019896,2]
[359965372,1746452698558,-450.0,0.00019896,2]
[359965373,1746452698579,-450.0,0.00019896,2]
[359965374,1746452698601,-450.0,0.00019896,2]
[359965375,1746452698623,-450.0,0.00019896,2]
[359965376,1746452698644,-450.0,0.00019896,2]
[359965377,1746452698665,-450.0,0.00019896,2]
[359965378,1746452698687,-505.14,0.00019896,2]
[359965379,1746452698706,-469.5541486,0.00019896,2]
[359965380,1746452698727,-450.0,0.00019896,2]
[359965381,1746452698748,-450.0,0.00019896,2]
[359965382,1746452698768,-368.23329625,0.00019896,2]
[359965383,1746452698793,-450.0,0.00019896,2]
[359965384,1746452698813,-450.0,0.00019896,2]
[359965385,1746452698833,-450.0,0.00019896,2]
[359965386,1746452698855,-450.0,0.00019896,2]
[359965387,1746452698876,-450.0,0.00019896,2]
[359965388,1746452698897,-566.45467809,0.00019896,2]
[359965389,1746452698918,-450.0,0.00019896,2]
[359965390,1746452698939,-450.0,0.00019896,2]
[359965391,1746452698962,-450.0,0.00019896,2]
[359965392,1746452698984,-450.0,0.00019896,2]
[359965393,1746452699005,-450.0,0.00019896,2]
[359965394,1746452699026,-450.0,0.00019896,2]
[359965395,1746452699047,-450.0,0.00019896,2]
[359965396,1746452699071,-450.0,0.00019896,2]
[359965397,1746452699092,-450.0,0.00019896,2]
[359965398,1746452699114,-450.0,0.00019896,2]
[359965399,1746452699137,-450.0,0.00019896,2]
[359965400,1746452699158,-571.66696018,0.00019896,2]
[359965401,1746452699178,-450.0,0.00019896,2]
[359965402,1746452699198,-450.0,0.00019896,2]
[359965403,1746452699219,-450.0,0.00019896,2]
[359965404,1746452699241,-450.0,0.00019896,2]
[359965405,1746452699262,-450.0,0.00019896,2]
[359965406,1746452699285,-450.0,0.00019896,2]
[359965407,1746452699307,-893.45,0.00019896,2]
[359965408,1746452699329,-450.0,0.00019896,2]
[359965409,1746452699350,-450.0,0.00019897,2]
[359965410,1746452699372,-450.0,0.00019897,2]
[359965411,1746452699393,-450.0,0.00019897,2]
[359965412,1746452699418,-290.49247509,0.00019897,2]
[359965413,1746452699440,-450.0,0.00019897,2]
[359965414,1746452699460,-450.0,0.00019897,2]
[359965415,1746452699481,-450.0,0.00019897,2]
[359965416,1746452699503,-505.14,0.00019897,2]
[359965417,1746452699524,-450.0,0.00019897,2]
[359965418,1746452699545,-450.0,0.00019897,2]
[359965419,1746452699566,-450.0,0.00019897,2]
[359965420,1746452699587,-450.0,0.00019897,2]
[359965421,1746452699608,-450.0,0.00019897,2]
[359965422,1746452699629,-450.0,0.00019897,2]
[359965423,1746452699663,-450.0,0.00019897,2]
[359965424,1746452699685,-450.0,0.00019897,2]
[359965425,1746452699708,-450.0,0.00019897,2]
[359965426,1746452699730,-450.0,0.00019897,2]
[359965427,1746452699751,-450.0,0.00019897,2]
[359965428,1746452699773,-450.0,0.00019897,2]
[359965429,1746452699795,-450.0,0.00019897,2]
[359965430,1746452699816,-450.0,0.00019897,2]
[359965431,1746452699836,-459.48474369,0.00019897,2]
[359965432,1746452699857,-450.0,0.00019897,2]
[359965433,1746452699880,-450.0,0.00019897,2]
[359965434,1746452699903,-450.0,0.00019897,2]
[359965435,1746452699926,-450.0,0.00019897,2]
[359965436,1746452699948,-462.02997911,0.00019897,2]
[359965437,1746452699971,-450.0,0.00019897,2]
[359965438,1746452699996,-450.0,0.00019897,2]
[359965439,1746452700018,-450.0,0.00019898,2]
[359965440,1746452700040,-450.0,0.00019898,2]
[359965441,1746452700067,-450.0,0.00019898,2]
[359965442,1746452700090,-461.82247763,0.00019898,2]
[359965443,1746452700113,-458.08302021,0.00019898,2]
[359965444,1746452700136,-450.0,0.00019898,2]
[359965445,1746452700159,-450.0,0.00019898,2]
[359965446,1746452700182,-450.0,0.00019898,2]
[359965447,1746452700205,-473.32802568,0.00019898,2]
[359965448,1746452700228,-450.0,0.00019898,2]
[359965449,1746452700250,-585.73689668,0.00019898,2]
[359965450,1746452700272,-466.025579,0.00019898,2]
[359965451,1746452700294,-257.41000253,0.00019898,2]
[359965452,1746452700315,-450.0,0.00019898,2]
[359965453,1746452700337,-450.0,0.00019898,2]
[359965454,1746452700359,-450.0,0.00019898,2]
[359965455,1746452700381,-458.30486148,0.00019898,2]
[359965456,1746452700402,-450.0,0.00019898,2]
[359965457,1746452700423,-450.0,0.00019898,2]
[359965458,1746452700444,-175.16295746,0.00019898,2]
[359965459,1746452700469,-205.17449248,0.00019898,2]
[359965460,1746452700490,-450.0,0.00019898,2]
[359965461,1746452700512,-450.0,0.00019898,2]
[359965462,1746452700534,-450.0,0.00019898,2]
[359965463,1746452700556,-450.0,0.00019898,2]
[359965464,1746452700577,-286.06,0.00019899,2]
[359965465,1746452700599,-294.27,0.00019899,2]
[359965466,1746452700622,-450.0,0.00019899,2]
[359965467,1746452700644,-450.0,0.00019899,2]
[359965468,1746452700668,-450.0,0.00019899,2]
[359965469,1746452700692,-505.14,0.00019899,2]
[359965470,1746452700713,-462.353672,0.00019899,2]
[359965471,1746452700735,-450.0,0.00019899,2]
[359965472,1746452700757,-450.0,0.00019899,2]
[359965473,1746452700779,-547.46631648,0.00019899,2]
[359965474,1746452700987,-450.0,0.00019899,2]
[359965475,1746452701012,-453.88756249,0.00019899,2]
[359965476,1746452701034,-450.0,0.00019899,2]
[359965477,1746452701058,-459.56,0.00019899,2]
[359965478,1746452701080,-450.0,0.00019899,2]
[359965479,1746452701103,-450.0,0.00019899,2]
[359965480,1746452701124,-450.0,0.00019899,2]
[359965481,1746452701146,-450.0,0.00019899,2]
[359965482,1746452701171,-299.79,0.00019899,2]
[359965483,1746452701192,-450.0,0.00019899,2]
[359965484,1746452701214,-450.0,0.00019899,2]
[359965485,1746452701235,-450.0,0.00019899,2]
[359965486,1746452701257,-450.0,0.00019899,2]
[359965487,1746452701277,-593.60262284,0.00019899,2]
[359965488,1746452701298,-458.29545581,0.00019899,2]
[359965489,1746452701319,-158.212938,0.000199,2]
[359965490,1746452701341,-618.77486739,0.000199,2]
[359965491,1746452701362,-516.31923333,0.00019922,2]
[359965492,1746452701383,-450.0,0.00019922,2]
[359965493,1746452701408,-450.0,0.00019922,2]
[359965494,1746452701429,-450.0,0.00019922,2]
[359965495,1746452701451,-450.0,0.00019922,2]
[359965496,1746452701473,-450.0,0.00019922,2]
[359965497,1746452701494,-450.0,0.00019922,2]
[359965498,1746452701516,-450.0,0.00019922,2]
[359965499,1746452701538,-450.0,0.00019922,2]
[359965500,1746452701560,-450.0,0.00019922,2]
[359965501,1746452701582,-450.0,0.00019922,2]
[359965502,1746452701604,-318.17590123,0.00019922,2]
[359965503,1746452701626,-270.59,0.00019922,2]
[359965504,1746452701650,-450.0,0.00019922,2]
[359965505,1746452701678,-450.0,0.00019922,2]
[359965506,1746452701700,-450.0,0.00019922,2]
[359965507,1746452701725,-470.85,0.00019922,2]
[359965508,1746452701746,-450.0,0.00019922,2]
[359965509,1746452701769,-893.45,0.00019922,2]
[359965510,1746452701790,-450.0,0.00019923,2]
[359965511,1746452701811,-450.0,0.00019923,2]
[359965512,1746452701832,-401.4,0.00019923,2]
[359965513,1746452701852,-450.0,0.00019923,2]
[359965514,1746452701873,-450.0,0.00019923,2]
[359965515,1746452701895,-450.0,0.00019923,2]
[359965516,1746452701921,-450.0,0.00019923,2]
[359965517,1746452701945,-1210.22,0.00019923,2]
[359965518,1746452701967,-1210.22,0.00019923,2]
[359965519,1746452701991,-1210.22,0.00019923,2]
[359965520,1746452702013,-450.0,0.00019923,2]
[359965521,1746452702035,-450.0,0.00019923,2]
[359965522,1746452702060,-450.0,0.00019923,2]
[359965523,1746452702083,-450.0,0.00019923,2]
[359965524,1746452702104,-450.0,0.00019923,2]
[359965525,1746452702126,-450.0,0.00019923,2]
[359965526,1746452702148,-450.0,0.00019923,2]
[359965527,1746452702174,-450.0,0.00019923,2]
[359965528,1746452702196,-297.23,0.00019923,2]
[359965529,1746452702218,-2335.3,0.00019923,2]
[359965530,1746452702241,-2335.3,0.00019923,2]
[359965531,1746452702263,-2335.3,0.00019923,2]
[359965532,1746452702287,-488.81429643,0.00019923,2]
[359965533,1746452702308,-450.0,0.00019923,2]
[359965534,1746452702330,-450.0,0.00019923,2]
[359965535,1746452702352,-450.0,0.00019923,2]
[359965536,1746452702374,-450.0,0.00019923,2]
[359965537,1746452702397,-450.0,0.00019923,2]
[359965538,1746452702427,-450.0,0.00019923,2]
[359965539,1746452702452,-470.85,0.00019923,2]
[359965540,1746452702479,-470.85,0.00019923,2]
[359965541,1746452702503,-470.85,0.00019923,2]
[359965542,1746452702525,-450.0,0.00019934,2]
[359965543,1746452702550,-450.0,0.00019934,2]
[359965544,1746452702574,-500.0,0.00019934,2]
[359965545,1746452702598,-450.0,0.00019934,2]
[359965546,1746452702620,-450.0,0.00019934,2]
[359965547,1746452702641,-450.0,0.00019934,2]
[359965548,1746452702668,-505.14,0.00019934,2]
[359965549,1746452702688,-35423.71334086,0.00019934,2]
[359965688,1746452790858,-583.79286018,0.00019519,2]
[359965689,1746452790880,-347.0693788,0.00019799,2]
[359965690,1746452790903,-200.0,0.000198,2]
[359965691,1746452790924,-200.0,0.000198,2]
[359965692,1746452790946,-92036.8778,0.00019823,2]
[359965693,1746452790971,-200.0,0.00019834,2]
[359965694,1746452790994,-199.18348472,0.00019848,2]
[359965695,1746452791015,-157.122744,0.00019853,2]
[359965696,1746452791036,-165.151342,0.00019853,2]
[359965697,1746452791058,-154.6696637,0.00019867,2]
[359965698,1746452791078,-184.90455014,0.00019868,2]
[359965699,1746452791360,-184.90455012,0.00019871,2]
[359965700,1746452791382,-184.90455012,0.00019873,2]
[359965701,1746452791405,-157.122744,0.00019887,2]
[359965702,1746452791426,-165.151342,0.00019887,2]
[359965703,1746452791448,-450.0,0.00019896,2]
[359965704,1746452791472,-450.0,0.00019896,2]
[359965705,1746452791494,-450.0,0.00019896,2]
[359965706,1746452791515,-468.91223706,0.00019896,2]
[359965707,1746452791537,-450.0,0.00019896,2]
[359965708,1746452791559,-450.0,0.00019896,2]
[359965709,1746452791581,-450.0,0.00019896,2]
[359965710,1746452791602,-450.0,0.00019896,2]
[359965711,1746452791623,-450.0,0.00019896,2]
[359965712,1746452791643,-450.0,0.00019896,2]
[359965713,1746452791666,-450.0,0.00019896,2]
[359965714,1746452791687,-450.0,0.00019896,2]
[359965715,1746452791708,-450.0,0.00019896,2]
[359965716,1746452791732,-450.0,0.00019896,2]
[359965717,1746452791753,-450.0,0.00019896,2]
[359965718,1746452791776,-450.0,0.00019896,2]
[359965719,1746452791799,-450.0,0.00019896,2]
[359965720,1746452791820,-450.0,0.00019896,2]